bitfinex/quotes_SOLUSD_20240705
["timestamp","ask_amount","ask_price","bid_price","bid_amount"]
[1720193433817,0.1,133.89,133.85,7.4706]
[1720193434002,0.1,133.89,133.81,106.4211]
[1720193434214,0.1,133.89,133.88,26.1427]
[1720193434723,0.1,133.89,133.88,46.1427]
[1720193434901,0.1,133.89,133.88,46.3127]
[1720193434902,0.0001,133.89,133.88,46.3127]
[1720193435106,0.8576326,133.91,133.9,7.4682]
[1720193436602,0.8576326,133.91,133.9,27.6382]
[1720193436923,0.8576326,133.91,133.9,27.4682]
[1720193437238,0.8576326,133.91,133.88,18.6734]
[1720193437599,0.8576326,133.91,133.9,7.4682]
[1720193438030,7.80502615,134.03,133.98,7.4638]
[1720193438325,7.46,134.05,133.98,7.4638]
[1720193438494,34.0225,134.06,133.94,18.6642]
[1720193438897,7.4625,134.01,133.95,7.465]
[1720193439112,7.4627,134.0,133.94,26.1301]
[1720193439314,6.9854326,134.04,133.98,7.4638]
[1720193439703,6.9854326,134.04,133.88,100.0]
[1720193439935,14.4459326,134.04,133.98,7.4638]
[1720193440138,6.9854326,134.04,133.98,7.4638]
[1720193440438,14.4460326,134.04,133.98,7.4638]
[1720193440749,6.9854326,134.04,133.98,7.4638]
[1720193440955,6.9854326,134.04,133.96,18.6622]
[1720193441127,6.9854326,134.04,133.97,1.28844793]
[1720193441335,6.9854326,134.04,133.95,7.465]
[1720193441336,7.4623,134.01,133.95,7.465]
[1720193441637,53.4754326,134.04,133.98,7.4638]
[1720193441841,6.9854326,134.04,133.98,7.4638]
[1720193442020,6.9854326,134.04,133.98,8.70025412]
[1720193442225,0.8576326,134.04,133.98,7.4638]
[1720193442433,0.0001,133.99,133.98,7.4638]
[1720193442631,0.8576326,134.04,134.03,26.1135]
[1720193443246,0.8576326,134.04,134.03,132.1927]
[1720193443575,0.8576326,134.04,134.03,152.3627]
[1720193443729,0.8576326,134.18,134.08,26.1037]
[1720193443922,7.4539,134.16,134.08,26.1037]
[1720193444127,7.4544,134.15,134.08,26.1037]
[1720193444349,7.4539,134.16,134.08,26.1037]
[1720193444764,7.4545,134.15,134.08,26.1037]
[1720193444944,7.4537,134.17,134.08,26.1037]
[1720193445253,7.4539,134.16,134.08,26.1037]
[1720193445550,7.4538,134.16,134.08,26.1037]
[1720193445763,0.8576326,134.18,134.08,26.1037]
[1720193446054,7.4542,134.16,134.08,26.1037]
[1720193446262,0.8576326,134.18,134.05,18.6491]
[1720193446435,18.6364,134.15,134.05,18.6491]
[1720193446853,7.4567,134.11,134.05,26.1084]
[1720193447149,18.6364,134.15,134.05,18.6491]
[1720193447362,7.4564,134.12,134.06,7.4592]
[1720193447539,7.4565,134.11,134.06,7.4592]
[1720193447736,18.6364,134.15,134.07,7.4587]
[1720193447934,21.61712726,134.18,134.07,7.4587]
[1720193447935,0.8576326,134.18,134.08,7.4582]
[1720193448163,18.6341,134.17,134.07,18.6464]
[1720193448364,15.8576326,134.18,133.99,6.2413]
[1720193448662,0.8576326,134.18,134.08,7.4582]
[1720193448841,7.4547,134.15,134.08,7.4582]
[1720193449044,7.4544,134.15,134.08,7.4582]
[1720193449240,0.8576326,134.18,134.08,27.4582]
[1720193449547,0.8576326,134.18,134.14,26.0913]
[1720193449743,0.8576326,134.18,134.14,7.4547]
[1720193450066,0.8576326,134.18,134.15,18.6355]
[1720193450451,0.8576326,134.18,134.14,7.4544]
[1720193450649,0.8576326,134.18,134.08,20.0]
[1720193450954,0.8576326,134.18,134.16,26.087]
[1720193451264,0.8576326,134.18,134.13,18.6378]
[1720193451461,0.8576326,134.18,134.08,37.2911]
[1720193451647,0.8576326,134.18,134.15,7.4542]
[1720193452049,0.8576326,134.18,134.16,7.4537]
[1720193452371,0.8576326,134.18,134.15,18.6354]
[1720193452668,0.8576326,134.18,134.16,7.4534]
[1720193452849,0.8576326,134.18,134.17,7.4532]
[1720193453259,0.8576326,134.18,134.15,18.6354]
[1720193453260,0.8576326,134.18,134.16,7.4536]
[1720193453437,0.8576326,134.18,134.17,7.4532]
[1720193453638,0.8576326,134.18,134.15,18.6354]
[1720193453841,0.8576326,134.18,134.16,7.4536]
[1720193454059,0.8576326,134.18,134.17,7.4532]
[1720193454863,3.26e-05,134.19,134.14,43.6131]
[1720193455069,3.26e-05,134.19,134.18,63.3475]
[1720193455288,3.26e-05,134.19,134.18,83.5175]
[1720193455653,3.26e-05,134.19,134.18,26.0842]
[1720193455957,3.26e-05,134.19,134.18,46.2542]
[1720193456149,0.04431759,134.24,134.23,7.4498]
[1720193456964,0.04431759,134.24,134.18,18.6315]
[1720193457160,7.45,134.23,134.14,6.4748]
[1720193457476,0.04431759,134.24,134.14,18.6368]
[1720193457679,7.4506,134.22,134.14,18.6368]
[1720193457852,46.53431759,134.24,134.14,7.4546]
[1720193458054,7.452,134.2,134.11,7.4564]
[1720193458358,46.53431759,134.24,134.1,26.0992]
[1720193458359,0.17,134.19,134.1,26.0992]
[1720193458556,0.17,134.19,134.06,15.6646]
[1720193458557,6.4862,134.19,134.06,18.6482]
[1720193458878,0.17,134.18,134.06,26.1071]
[1720193459055,62.1041,134.17,134.06,26.1074]
[1720193459378,62.1041,134.17,134.06,18.6482]
[1720193459379,7.624,134.16,134.06,18.6482]
[1720193459554,15.6141,134.17,134.06,18.6482]
[1720193459968,0.17,134.16,134.08,7.4581]
[1720193460175,7.4547,134.15,134.07,7.4583]
[1720193460388,52.9762,134.19,134.09,18.6438]
[1720193460579,52.9762,134.19,134.08,18.6455]
[1720193460878,7.4562,134.12,134.04,18.6505]
[1720193461084,0.17,134.18,134.0,8.28160821]
[1720193461085,7.4572,134.1,134.0,8.28160821]
[1720193461381,7.4578,134.09,134.02,7.4613]
[1720193461551,46.66,134.11,134.0,20.38220821]
[1720193461751,6.1989,134.1,133.98,7.4634]
[1720193461974,0.17,134.09,133.96,18.661]
[1720193462186,45.24,134.09,133.98,18.6582]
[1720193462470,7.4587,134.08,134.0,7.4621]
[1720193462675,7.4587,134.08,134.0,26.1175]
[1720193462676,7.4583,134.08,134.0,26.1175]
[1720193462975,7.4583,134.08,133.91,6.4293]
[1720193462976,7.4621,134.01,133.94,7.4659]
[1720193463471,0.17,134.02,133.92,18.667]
[1720193463472,7.4627,134.0,133.92,26.1335]
[1720193463673,7.4627,134.0,133.92,18.667]
[1720193463861,0.17,134.02,133.92,18.667]
[1720193464061,7.6315,134.02,133.92,18.667]
[1720193464385,34.8449,134.12,133.93,137.3327]
[1720193464679,7.4593,134.07,134.0,7.4621]
[1720193464878,127.8249,134.12,133.98,18.6591]
[1720193465177,127.8249,134.12,133.94,18.6641]
[1720193465178,46.49,134.03,133.94,18.6641]
[1720193465679,53.951,134.03,133.96,7.4648]
[1720193465978,53.951,134.03,133.94,18.6641]
[1720193465979,7.4627,134.0,133.94,18.6641]
[1720193466178,0.17,133.99,133.91,0.1]
[1720193466386,46.49,134.03,133.95,7.4649]
[1720193466587,0.17,134.02,133.91,0.1]
[1720193466751,7.4645,133.97,133.91,0.1]
[1720193466952,24.46388509,134.01,133.93,18.6659]
[1720193467402,18.6641,134.06,133.93,18.6659]
[1720193467403,7.4585,134.08,133.93,100.0]
[1720193467674,62.5599,134.09,133.94,37.3277]
[1720193467976,7.80132291,134.08,134.01,7.462]
[1720193468157,62.5599,134.09,134.0,18.6565]
[1720193468475,62.5599,134.09,133.97,18.6608]
[1720193468476,70.36141186,134.09,133.97,18.6608]
[1720193468775,18.6467,134.08,133.94,18.6647]
[1720193468977,7.4626,134.01,133.94,18.6647]
[1720193469179,7.4615,134.03,133.96,7.4644]
[1720193469363,46.49,134.05,133.96,18.6612]
[1720193469568,46.49,134.05,134.0,7.4626]
[1720193469882,7.4603,134.05,133.98,26.1214]
[1720193470179,18.6471,134.07,133.96,7.4645]
[1720193470375,18.6471,134.07,133.95,18.6633]
[1720193470376,46.49,134.04,133.95,18.6633]
[1720193470677,46.49,134.04,133.95,26.1286]
[1720193470980,0.17,134.03,133.95,18.6633]
[1720193471187,7.4628,134.0,133.92,18.6674]
[1720193471380,7.4628,134.0,133.92,26.134]
[1720193471761,0.17,133.99,133.91,0.1]
[1720193472858,16.5085,133.99,133.91,0.1]
[1720193473066,46.49,133.96,133.91,0.1]
[1720193473282,0.17,133.95,133.91,0.1]
[1720193473705,7.4661,133.94,133.91,0.1]
[1720193474194,7.4667,133.93,133.91,0.1]
[1720193474384,0.17,133.95,133.91,0.1]
[1720193474385,7.4671,133.92,133.91,0.1]
[1720193474583,7.4666,133.93,133.91,0.1]
[1720193475407,0.17,133.95,133.91,0.1]
[1720193475584,46.49,133.97,133.91,0.1]
[1720193475585,7.635,133.96,133.91,0.1]
[1720193475779,7.4662,133.94,133.91,0.1]
[1720193475972,0.17,133.96,133.91,0.1]
[1720193476171,7.4664,133.94,133.91,0.1]
[1720193476473,6.4006,134.0,133.91,0.1]
[1720193476474,6.394,134.04,133.91,0.1]
[1720193476671,46.49,134.02,133.91,18.7685]
[1720193477080,65.1447,134.02,133.91,18.7685]
[1720193477292,7.4638,133.98,133.91,18.7685]
[1720193477477,7.4645,133.97,133.91,26.236]
[1720193477668,7.4649,133.96,133.91,18.7685]
[1720193477869,46.49,133.98,133.91,0.1]
[1720193478084,7.4658,133.95,133.91,0.1]
[1720193478289,7.4644,133.97,133.91,0.1]
[1720193478490,65.15,133.98,133.91,0.1]
[1720193478672,7.4671,133.92,133.91,0.1]
[1720193478868,15.27388812,133.96,133.91,0.1]
[1720193479595,7.80868812,133.96,133.92,6.2505]
[1720193479779,46.49,133.98,133.92,6.2505]
[1720193479985,7.4621,134.01,133.95,7.465]
[1720193480180,15.26572434,134.02,133.96,7.4645]
[1720193480500,12.35489657,134.04,133.95,18.6628]
[1720193480501,6.394,134.04,133.95,18.6628]
[1720193480702,7.4623,134.01,133.95,26.1278]
[1720193480997,14.19760606,134.04,133.92,24.9174]
[1720193481205,18.653,134.03,133.92,24.9174]
[1720193481369,14.19760606,134.04,133.94,18.6644]
[1720193481569,14.19760606,134.04,133.94,26.1299]
[1720193481570,7.4629,134.0,133.94,26.1299]
[1720193481791,7.4629,134.0,133.92,6.2505]
[1720193481792,7.4642,133.98,133.92,7.4669]
[1720193481982,18.6572,134.0,133.91,0.1]
[1720193482190,7.4652,133.96,133.91,0.1]
[1720193482496,46.49,133.99,133.91,0.1]
[1720193482795,7.4643,133.97,133.91,7.5672]
[1720193482995,7.4659,133.95,133.91,0.1]
[1720193483205,0.17,133.98,133.91,0.1]
[1720193483409,7.4653,133.96,133.91,0.1]
[1720193483610,46.49,133.99,133.93,7.4661]
[1720193484098,7.80360606,134.04,133.93,100.0]
[1720193484305,7.46,134.05,133.98,18.6584]
[1720193484478,7.4619,134.02,133.95,18.6627]
[1720193484678,46.49,134.03,133.91,0.1]
[1720193484923,7.8024666,134.07,133.91,0.1]
[1720193484924,54.2924666,134.07,133.99,18.6573]
[1720193485110,54.2924666,134.07,133.96,18.6616]
[1720193485395,7.4642,133.98,133.92,7.467]
[1720193485784,18.6557,134.01,133.91,0.1]
[1720193486386,0.17,134.0,133.91,0.1]
[1720193486577,65.1486,133.99,133.91,0.1]
[1720193486794,7.4664,133.94,133.91,0.1]
[1720193486988,0.17,133.98,133.91,0.1]
[1720193487185,7.4666,133.93,133.91,0.1]
[1720193487991,7.4659,133.95,133.91,0.1]
[1720193488295,0.17,133.94,133.91,0.1]
[1720193488491,46.49,133.95,133.91,0.1]
[1720193488807,7.4668,133.93,133.91,0.1]
[1720193489378,7.4671,133.92,133.91,0.1]
[1720193489784,7.6371,133.92,133.91,0.1]
[1720193490683,18.6699,133.91,133.85,0.8576326]
[1720193490977,7.4704,133.86,133.85,0.8576326]
[1720193491211,7.4701,133.87,133.85,0.8576326]
[1720193491499,7.4704,133.86,133.85,0.8576326]
[1720193491907,7.6404,133.86,133.85,0.8576326]
[1720193492292,7.4727,133.82,133.81,0.1]
[1720193492678,7.4722,133.83,133.77,7.4753]
[1720193492988,46.49,133.85,133.76,18.6893]
[1720193493380,6.2979,133.9,133.74,137.59]
[1720193493579,46.49,133.91,133.75,100.0]
[1720193493883,46.49,133.91,133.81,18.6828]
[1720193494283,7.4689,133.89,133.83,7.472]
[1720193494805,7.4705,133.86,133.81,18.6828]
[1720193494996,7.4722,133.83,133.78,18.6867]
[1720193495401,18.6766,133.86,133.76,7.4758]
[1720193495605,7.4734,133.81,133.75,26.1674]
[1720193495798,7.4734,133.81,133.75,18.6909]
[1720193495997,65.1666,133.86,133.75,18.6909]
[1720193496200,7.4734,133.81,133.75,26.1671]
[1720193496803,7.4738,133.8,133.75,18.6909]
[1720193497105,0.17,133.85,133.72,38.2490326]
[1720193497106,7.4745,133.79,133.73,7.4773]
[1720193497420,18.6754,133.87,133.72,38.2476326]
[1720193497593,7.4716,133.84,133.78,26.1615]
[1720193497991,46.49,133.85,133.78,18.6868]
[1720193498195,7.476,133.77,133.72,0.8576326]
[1720193498393,18.6851,133.8,133.72,0.8576326]
[1720193498598,7.4753,133.78,133.72,8.3357326]
[1720193498811,46.49,133.81,133.72,0.8576326]
[1720193499311,46.49,133.81,133.73,7.4775]
[1720193499615,46.49,133.81,133.72,0.8576326]
[1720193499816,53.9638,133.81,133.75,7.4765]
[1720193499984,46.49,133.81,133.73,7.4774]
[1720193500184,46.49,133.81,133.72,0.8576326]
[1720193500404,7.4775,133.74,133.72,0.8576326]
[1720193500610,18.688,133.78,133.72,0.8576326]
[1720193500817,0.17,133.8,133.72,0.8576326]
[1720193501009,7.4752,133.78,133.72,0.8576326]
[1720193501208,46.49,133.81,133.72,0.8576326]
[1720193501420,7.4757,133.77,133.72,0.8576326]
[1720193501619,46.66,133.8,133.72,0.8576326]
[1720193501907,7.477,133.75,133.72,0.8576326]
[1720193502112,18.688,133.78,133.72,0.8576326]
[1720193502314,7.4777,133.73,133.72,0.8576326]
[1720193502819,7.6477,133.73,133.72,0.8576326]
[1720193503510,7.4783,133.72,133.71,0.0001]
[1720193503712,36.3448,133.72,133.61,0.1]
[1720193503917,46.49,133.68,133.61,0.1]
[1720193504220,7.4821,133.66,133.61,0.1]
[1720193504517,46.49,133.7,133.61,0.1]
[1720193504724,7.4811,133.67,133.61,18.8108]
[1720193504931,7.4811,133.67,133.61,26.2947]
[1720193505119,7.96740175,133.69,133.61,0.1]
[1720193505296,7.4839,133.62,133.61,0.1]
[1720193505695,46.49,133.66,133.61,0.1]
[1720193505898,0.17,133.67,133.61,0.1]
[1720193506195,15.9723,133.78,133.66,18.7038]
[1720193506405,46.49,133.73,133.65,18.7049]
[1720193506605,7.479,133.71,133.65,7.4821]
[1720193506818,46.49,133.73,133.62,6.3695]
[1720193507131,46.49,133.73,133.61,0.1]
[1720193507132,7.4828,133.64,133.61,0.1]
[1720193507307,7.4839,133.62,133.61,0.1]
[1720193507619,46.49,133.63,133.58,8.3432326]
[1720193507830,46.49,133.63,133.58,0.8576326]
[1720193508198,7.4846,133.61,133.58,0.8576326]
[1720193508527,7.4848,133.61,133.58,0.8576326]
[1720193508821,7.4855,133.59,133.58,0.8576326]
[1720193509525,18.8801,133.62,133.58,0.8576326]
[1720193509813,7.4855,133.59,133.58,0.8576326]
[1720193510326,46.66,133.59,133.51,0.1]
[1720193510532,18.7173,133.57,133.51,0.1]
[1720193510695,7.4884,133.54,133.51,0.1]
[1720193510891,7.4895,133.52,133.51,0.1]
[1720193512099,7.6595,133.52,133.51,0.1]
[1720193512298,7.6595,133.52,133.45,0.8576326]
[1720193512299,7.4912,133.49,133.45,0.8576326]
[1720193512521,46.49,133.51,133.45,0.8576326]
[1720193513016,0.17,133.5,133.45,0.8576326]
[1720193513225,7.4923,133.47,133.45,0.8576326]
[1720193513529,7.4912,133.49,133.45,0.8576326]
[1720193513739,46.49,133.51,133.45,0.8576326]
[1720193513895,81.5546,133.56,133.45,19.5906326]
[1720193514099,46.49,133.56,133.49,18.7273]
[1720193514396,46.49,133.56,133.45,0.8576326]
[1720193514595,7.4891,133.53,133.47,7.4922]
[1720193514816,18.72,133.55,133.45,0.8576326]
[1720193515008,46.49,133.52,133.45,0.8576326]
[1720193515207,7.4915,133.49,133.45,0.8576326]
[1720193515408,7.6607,133.5,133.45,0.8576326]
[1720193515639,46.49,133.52,133.45,19.5903326]
[1720193515808,46.49,133.56,133.51,7.4896]
[1720193515995,46.49,133.56,133.49,18.7273]
[1720193516320,46.49,133.56,133.46,18.7317]
[1720193516619,46.49,133.56,133.45,0.8576326]
[1720193516996,46.49,133.56,133.52,7.4892]
[1720193516997,7.80451898,133.55,133.52,7.4892]
[1720193517323,22.02153341,133.61,133.45,0.8576326]
[1720193517324,18.707,133.64,133.53,7.4886]
[1720193517503,6.1896,133.65,133.52,7.4891]
[1720193517504,7.4862,133.58,133.52,7.4891]
[1720193517700,7.4851,133.6,133.54,7.4883]
[1720193518108,7.4848,133.61,133.54,7.4879]
[1720193518311,7.4852,133.6,133.54,7.4883]
[1720193518501,7.80308319,133.62,133.55,18.7183]
[1720193518699,7.80308319,133.62,133.57,7.4866]
[1720193519229,7.4827,133.65,133.59,7.485]
[1720193519399,7.4822,133.65,133.59,18.7134]
[1720193519596,7.80083099,133.65,133.53,18.7216]
[1720193519802,7.4855,133.6,133.54,7.4883]
[1720193520102,7.4855,133.6,133.53,18.7216]
[1720193520103,7.4862,133.58,133.53,7.4888]
[1720193520305,46.49,133.63,133.54,18.7204]
[1720193520509,7.80083099,133.65,133.6,7.485]
[1720193520826,15.28303099,133.65,133.59,7.4854]
[1720193521124,12.33788379,133.69,133.55,37.437]
[1720193521421,7.79734735,133.65,133.6,7.4846]
[1720193521605,7.4824,133.65,133.59,18.7135]
[1720193521808,7.4824,133.65,133.59,26.1986]
[1720193522011,7.4822,133.65,133.59,26.199]
[1720193522407,7.4844,133.61,133.56,18.7172]
[1720193522601,7.79771179,133.67,133.55,7.4877]
[1720193522602,7.4851,133.6,133.55,7.4877]
[1720193522813,18.7062,133.65,133.52,37.4448]
[1720193523018,7.4846,133.61,133.55,18.7192]
[1720193523223,7.4835,133.63,133.57,7.4863]
[1720193523410,7.79771179,133.67,133.56,37.4358]
[1720193523609,7.79771179,133.67,133.6,7.4849]
[1720193523835,7.79771179,133.67,133.55,18.7187]
[1720193524121,100.0,133.66,133.5,15.0111]
[1720193524324,7.4882,133.55,133.49,14.0816]
[1720193524525,46.49,133.61,133.45,53.5143326]
[1720193524526,6.0905,133.6,133.45,59.6702326]
[1720193524709,46.49,133.57,133.45,59.6702326]
[1720193524901,0.17,133.56,133.45,59.6702326]
[1720193525101,7.6572,133.56,133.5,7.4901]
[1720193525323,7.4879,133.55,133.49,7.4911]
[1720193525529,7.4884,133.54,133.48,26.2201]
[1720193526031,7.4884,133.54,133.49,7.4911]
[1720193526201,0.17,133.56,133.5,7.4905]
[1720193526202,7.4879,133.55,133.5,7.4905]
[1720193526410,0.17,133.56,133.5,18.7259]
[1720193526618,5.81767696,133.59,133.5,18.7259]
[1720193526832,0.17,133.58,133.45,7.0135326]
[1720193527006,7.4904,133.51,133.45,27.0840326]
[1720193527328,0.17,133.52,133.45,19.5906326]
[1720193527524,7.6591,133.53,133.47,7.4919]
[1720193527728,46.49,133.54,133.45,0.8576326]
[1720193527928,7.7926515,133.57,133.46,37.4626]
[1720193528106,7.7926515,133.57,133.53,18.7218]
[1720193528305,46.49,133.63,133.57,7.4865]
[1720193528306,53.9738,133.63,133.57,7.4865]
[1720193528533,7.4849,133.61,133.55,26.2066]
[1720193528711,46.49,133.63,133.55,18.7188]
[1720193528907,7.78737818,133.62,133.6,7.4846]
[1720193529133,7.4821,133.66,133.6,7.4846]
[1720193529430,60.38119973,133.69,133.61,18.7108]
[1720193529736,60.38119973,133.69,133.62,7.4838]
[1720193529737,7.4806,133.68,133.62,7.4838]
[1720193529948,60.38119973,133.69,133.61,26.1951]
[1720193530231,60.38119973,133.69,133.61,18.7108]
[1720193530431,60.38119973,133.69,133.51,22.6281]
[1720193530432,18.7054,133.66,133.51,22.6281]
[1720193530626,46.49,133.65,133.51,22.6281]
[1720193530809,7.4835,133.63,133.57,7.4863]
[1720193531005,7.4833,133.63,133.57,18.7157]
[1720193531203,46.49,133.65,133.59,7.4855]
[1720193531432,13.89119973,133.69,133.59,18.7135]
[1720193531636,13.89119973,133.69,133.52,37.4448]
[1720193531825,18.7017,133.68,133.58,7.486]
[1720193532137,13.89119973,133.69,133.52,37.4448]
[1720193532432,46.49,133.66,133.55,18.7184]
[1720193532638,46.49,133.66,133.52,18.7231]
[1720193532811,7.4861,133.58,133.52,26.2125]
[1720193533015,46.49,133.62,133.52,18.7231]
[1720193533207,46.49,133.62,133.51,22.6281]
[1720193533208,0.17,133.61,133.51,22.6281]
[1720193533407,7.4883,133.55,133.49,7.491]
[1720193533615,7.4889,133.53,133.48,18.728]
[1720193533814,25.1962,133.59,133.46,7.4927]
[1720193533815,7.4896,133.52,133.46,7.4927]
[1720193534012,18.7173,133.57,133.48,7.4917]
[1720193534230,0.17,133.56,133.47,26.2224]
[1720193534541,7.4896,133.52,133.47,18.7302]
[1720193534728,7.4901,133.51,133.45,8.3506326]
[1720193534931,7.4895,133.52,133.46,7.4926]
[1720193535233,46.49,133.58,133.52,7.4894]
[1720193535434,52.9711,133.63,133.48,22.59]
[1720193535622,52.9711,133.63,133.54,18.7203]
[1720193535823,46.49,133.63,133.54,18.7203]
[1720193536343,46.49,133.63,133.56,18.7172]
[1720193536647,6.2814,133.67,133.58,18.7148]
[1720193536846,6.2814,133.67,133.52,6.124]
[1720193536847,7.4851,133.6,133.55,18.7186]
[1720193537139,46.49,133.62,133.47,6.3175]
[1720193537332,18.7162,133.58,133.49,18.7269]
[1720193537541,45.07,133.6,133.49,18.7269]
[1720193537720,7.489,133.53,133.47,13.8094]
[1720193538337,7.4885,133.54,133.48,7.4917]
[1720193538742,46.49,133.58,133.47,6.3175]
[1720193538743,53.9764,133.58,133.47,6.3175]
[1720193538953,46.49,133.63,133.53,7.4888]
[1720193539252,7.4821,133.66,133.6,7.4848]
[1720193539541,7.4825,133.65,133.59,26.1989]
[1720193539745,7.4828,133.64,133.59,18.7135]
[1720193539950,7.4824,133.65,133.59,26.199]
[1720193540339,7.4852,133.6,133.55,7.4877]
[1720193540548,14.06298365,133.67,133.6,7.4846]
[1720193540549,7.78158365,133.67,133.6,7.4846]
[1720193540731,7.78158365,133.67,133.6,7.4849]
[1720193541048,7.78158365,133.67,133.61,7.4844]
[1720193541339,7.4811,133.67,133.62,7.4837]
[1720193541541,65.1888,133.7,133.61,7.4844]
[1720193541717,15.2621522,133.68,133.62,7.4838]
[1720193542141,7.4811,133.67,133.6,18.7122]
[1720193542326,7.78068312,133.68,133.6,18.7122]
[1720193542519,7.4812,133.67,133.61,7.4844]
[1720193542922,15.26138312,133.68,133.62,7.4837]
[1720193543127,7.4828,133.64,133.58,7.4857]
[1720193543328,0.17,133.63,133.57,26.202]
[1720193543659,21.5119,133.76,133.57,100.0]
[1720193543951,21.5119,133.76,133.58,100.0]
[1720193543952,7.780683,133.73,133.58,100.0]
[1720193544150,7.780683,133.73,133.67,18.7022]
[1720193544323,7.4773,133.74,133.67,18.7022]
[1720193544522,70.97828261,133.77,133.69,18.6993]
[1720193544523,52.28868261,133.77,133.69,18.6993]
[1720193544738,7.4778,133.73,133.67,7.481]
[1720193544963,7.4783,133.72,133.67,7.481]
[1720193545138,7.4783,133.72,133.63,37.4155]
[1720193545139,89.66868261,133.77,133.62,15.2251]
[1720193545452,7.4769,133.75,133.62,15.2251]
[1720193545745,7.4774,133.74,133.68,26.1815]
[1720193545955,7.4809,133.68,133.62,7.4835]
[1720193546249,7.4789,133.71,133.65,7.4821]
[1720193546424,7.4794,133.7,133.64,26.189]
[1720193546633,7.77426536,133.72,133.64,18.7067]
[1720193546826,7.4795,133.7,133.65,7.482]
[1720193547021,7.4801,133.69,133.64,18.7067]
[1720193547223,7.77426536,133.72,133.61,25.3382]
[1720193547552,18.6979,133.71,133.61,25.3382]
[1720193547849,18.7004,133.69,133.58,18.7146]
[1720193548059,7.4833,133.63,133.58,18.7146]
[1720193548425,0.17,133.68,133.56,21.5004]
[1720193548656,92.98,133.7,133.56,21.5004]
[1720193548657,46.49,133.7,133.56,44.0904]
[1720193548947,7.48,133.69,133.64,7.4827]
[1720193549148,46.49,133.7,133.58,100.0]
[1720193549350,53.9695,133.7,133.64,26.1892]
[1720193549539,46.49,133.7,133.61,18.7101]
[1720193549848,7.4812,133.67,133.62,7.4837]
[1720193550050,46.49,133.7,133.58,18.7142]
[1720193550550,7.4826,133.65,133.58,18.7142]
[1720193550851,7.4829,133.64,133.58,7.486]
[1720193551257,18.7045,133.66,133.57,18.7165]
[1720193551258,0.17,133.63,133.57,18.7165]
[1720193551429,0.17,133.63,133.56,13.7624]
[1720193551749,7.6537,133.63,133.57,7.4866]
[1720193551949,0.17,133.63,133.56,24.9932]
[1720193552154,0.17,133.63,133.53,18.7212]
[1720193552360,7.4858,133.59,133.53,26.2096]
[1720193552531,65.2002,133.62,133.53,26.2096]
[1720193552855,7.4861,133.58,133.53,18.7212]
[1720193553058,7.4863,133.58,133.52,7.4893]
[1720193553348,0.17,133.61,133.51,6.1298]
[1720193553553,0.17,133.61,133.55,7.4877]
[1720193553751,46.49,133.62,133.51,6.1298]
[1720193553933,46.49,133.62,133.56,26.2042]
[1720193553934,7.4841,133.62,133.56,26.2042]
[1720193554337,7.4834,133.63,133.57,7.4862]
[1720193554538,7.4839,133.62,133.56,18.7175]
[1720193554846,7.4835,133.63,133.57,7.4866]
[1720193555147,65.1944,133.66,133.56,18.7175]
[1720193555349,7.4864,133.58,133.53,18.7211]
[1720193555525,7.4868,133.57,133.51,13.6197]
[1720193555855,65.2006,133.62,133.53,7.4889]